[Event "Titled Tuesday Blitz February 07 Late 2023"]
[White "Kleiman, Jake"]
[Black "Bacrot, Etienne"]
[WhiteFideId "2020041"]
[BlackFideId "605506"]
[WhiteElo "2399"]
[BlackElo "2667"]
[Result "0-1"]
[Round "03"]
[TimeControl "180+2"]
[Date "2023.02.07"]
[WhiteClock "0:00:19"]
[BlackClock "0:00:07"]

1. e4 {[%clk 0:03:00]}  c5 {[%clk 0:02:59]} 2. c3 {[%clk 0:03:00]}  Nf6 {[%clk 0:02:58]} 3. e5 {[%clk 0:03:00]}  Nd5 {[%clk 0:02:59]} 4. Bc4 {[%clk 0:03:01]}  Nb6 {[%clk 0:02:59]} 5. Bb3 {[%clk 0:03:00]}  d5 {[%clk 0:02:57]} 6. exd6 {[%clk 0:03:01]}  Qxd6 {[%clk 0:02:56]} 7. Nf3 {[%clk 0:03:01]}  Nc6 {[%clk 0:02:56]} 8. O-O {[%clk 0:03:02]}  Be6 {[%clk 0:02:53]} 9. Bxe6 {[%clk 0:03:02]}  Qxe6 {[%clk 0:02:54]} 10. a4 {[%clk 0:03:03]}  Nd5 {[%clk 0:02:48]} 11. d4 {[%clk 0:02:59]}  cxd4 {[%clk 0:02:46]} 12. Nxd4 {[%clk 0:03:00]}  Qd7 {[%clk 0:02:44]} 13. Re1 {[%clk 0:02:50]}  e6 {[%clk 0:02:44]} 14. Nxc6 {[%clk 0:02:48]}  Qxc6 {[%clk 0:02:44]} 15. Qd4 {[%clk 0:02:45]}  Qc5 {[%clk 0:02:05]} 16. Qg4 {[%clk 0:02:42]}  Nf6 {[%clk 0:02:05]} 17. Qg3 {[%clk 0:02:28]}  Qc6 {[%clk 0:02:05]} 18. Nd2 {[%clk 0:02:24]}  Bd6 {[%clk 0:02:03]} 19. Qh4 {[%clk 0:02:21]}  O-O {[%clk 0:01:45]} 20. Nf3 {[%clk 0:02:21]}  Rac8 {[%clk 0:01:34]} 21. Bg5 {[%clk 0:02:19]}  Nd5 {[%clk 0:01:31]} 22. Rad1 {[%clk 0:02:17]}  Qc7 {[%clk 0:01:17]} 23. Qe4 {[%clk 0:02:00]}  a6 {[%clk 0:01:15]} 24. h3 {[%clk 0:01:55]}  h6 {[%clk 0:01:12]} 25. Bc1 {[%clk 0:01:54]}  Rfe8 {[%clk 0:01:08]} 26. Qg4 {[%clk 0:01:43]}  Nf6 {[%clk 0:01:07]} 27. Qh4 {[%clk 0:01:43]}  Be7 {[%clk 0:01:02]} 28. Ne5 {[%clk 0:01:33]}  Rcd8 {[%clk 0:00:58]} 29. Rxd8 {[%clk 0:01:14]}  Rxd8 {[%clk 0:00:59]} 30. Qc4 {[%clk 0:01:14]}  Qb6 {[%clk 0:00:48]} 31. Nf3 {[%clk 0:00:45]}  Bc5 {[%clk 0:00:43]} 32. Qe2 {[%clk 0:00:46]}  Qb3 {[%clk 0:00:36]} 33. a5 {[%clk 0:00:46]}  Qd5 {[%clk 0:00:31]} 34. Ne5 {[%clk 0:00:44]}  Ne4 {[%clk 0:00:19]} 35. Qxe4 {[%clk 0:00:29]}  Qxe4 {[%clk 0:00:19]} 36. Rxe4 {[%clk 0:00:30]}  Rd1+ {[%clk 0:00:19]} 37. Kh2 {[%clk 0:00:31]}  Rxc1 {[%clk 0:00:19]} 38. Nd3 {[%clk 0:00:28]}  Bd6+ {[%clk 0:00:18]} 39. g3 {[%clk 0:00:28]}  Rd1 {[%clk 0:00:17]} 40. Rd4 {[%clk 0:00:27]}  Be7 {[%clk 0:00:17]} 41. Rd7 {[%clk 0:00:26]}  Kf8 {[%clk 0:00:16]} 42. Ne5 {[%clk 0:00:23]}  Rxd7 {[%clk 0:00:16]} 43. Nxd7+ {[%clk 0:00:24]}  Ke8 {[%clk 0:00:16]} 44. Ne5 {[%clk 0:00:24]}  Bd8 {[%clk 0:00:15]} 45. Nc4 {[%clk 0:00:23]}  Kd7 {[%clk 0:00:15]} 46. Kg2 {[%clk 0:00:21]}  Bc7 {[%clk 0:00:13]} 47. Kf3 {[%clk 0:00:20]}  Kc6 {[%clk 0:00:13]} 48. b4 {[%clk 0:00:18]}  Kd5 {[%clk 0:00:12]} 49. Nd2 {[%clk 0:00:18]}  Be5 {[%clk 0:00:11]} 50. c4+ {[%clk 0:00:18]}  Kd4 {[%clk 0:00:11]} 51. Ke2 {[%clk 0:00:16]}  Bc7 {[%clk 0:00:09]} 52. Kd1 {[%clk 0:00:15]}  Kc3 {[%clk 0:00:08]} 53. b5 {[%clk 0:00:16]}  Bxa5 {[%clk 0:00:07]} 54. bxa6 {[%clk 0:00:15]}  bxa6 {[%clk 0:00:07]} 55. c5 {[%clk 0:00:15]}  Bc7 {[%clk 0:00:06]} 56. c6 {[%clk 0:00:16]}  Kd4 {[%clk 0:00:06]} 57. Kc2 {[%clk 0:00:15]}  Kc5 {[%clk 0:00:06]} 58. Kc3 {[%clk 0:00:15]}  Kxc6 {[%clk 0:00:07]} 59. Kc4 {[%clk 0:00:16]}  a5 {[%clk 0:00:07]} 60. Ne4 {[%clk 0:00:16]}  f5 {[%clk 0:00:07]} 61. Nc3 {[%clk 0:00:16]}  e5 {[%clk 0:00:07]} 62. g4 {[%clk 0:00:17]}  fxg4 {[%clk 0:00:06]} 63. hxg4 {[%clk 0:00:17]}  Bd8 {[%clk 0:00:05]} 64. Ne4 {[%clk 0:00:17]}  Be7 {[%clk 0:00:05]} 65. f3 {[%clk 0:00:17]}  a4 {[%clk 0:00:05]} 66. Nc3 {[%clk 0:00:17]}  a3 {[%clk 0:00:06]} 67. Na2 {[%clk 0:00:18]}  Bf8 {[%clk 0:00:06]} 68. Nc3 {[%clk 0:00:18]}  Kd6 {[%clk 0:00:06]} 69. Kd3 {[%clk 0:00:17]}  Ke6 {[%clk 0:00:06]} 70. Ke4 {[%clk 0:00:17]}  Bb4 {[%clk 0:00:07]} 71. Na2 {[%clk 0:00:16]}  Ba5 {[%clk 0:00:07]} 72. Nc1 {[%clk 0:00:16]}  Bd2 {[%clk 0:00:06]} 73. Na2 {[%clk 0:00:16]}  g6 {[%clk 0:00:07]} 74. Kd3 {[%clk 0:00:16]}  Ba5 {[%clk 0:00:07]} 75. Nc1 {[%clk 0:00:16]}  h5 {[%clk 0:00:07]} 76. gxh5 {[%clk 0:00:17]}  gxh5 {[%clk 0:00:07]} 77. Ke4 {[%clk 0:00:18]}  Bd2 {[%clk 0:00:07]} 78. Na2 {[%clk 0:00:18]}  h4 {[%clk 0:00:08]} 79. Kd3 {[%clk 0:00:19]}  h3 {[%clk 0:00:07]} 0-1


[Site "https://www.chess.com"]

[Event "Titled Tuesday Blitz February 07 Late 2023"]
[White "Gurevich, Dmitry"]
[Black "Grigorov, Grigor"]
[WhiteFideId "2000407"]
[BlackFideId "2907313"]
[WhiteElo "2393"]
[BlackElo "2510"]
[Result "0-1"]
[Round "03"]
[TimeControl "180+2"]
[Date "2023.02.07"]
[WhiteClock "0:00:01"]
[BlackClock "0:00:05"]

1. d4 {[%clk 0:03:00]}  Nf6 {[%clk 0:02:59]} 2. c4 {[%clk 0:03:00]}  e6 {[%clk 0:03:00]} 3. Nc3 {[%clk 0:03:00]}  Bb4 {[%clk 0:02:59]} 4. a3 {[%clk 0:02:59]}  Bxc3+ {[%clk 0:02:59]} 5. bxc3 {[%clk 0:03:00]}  c5 {[%clk 0:02:57]} 6. e3 {[%clk 0:02:58]}  b6 {[%clk 0:02:57]} 7. Bd3 {[%clk 0:02:56]}  Bb7 {[%clk 0:02:55]} 8. f3 {[%clk 0:02:56]}  Nc6 {[%clk 0:02:50]} 9. Ne2 {[%clk 0:02:55]}  O-O {[%clk 0:02:50]} 10. e4 {[%clk 0:02:54]}  Ne8 {[%clk 0:02:49]} 11. O-O {[%clk 0:02:50]}  Na5 {[%clk 0:02:49]} 12. d5 {[%clk 0:02:40]}  Nd6 {[%clk 0:02:34]} 13. Ng3 {[%clk 0:02:21]}  Naxc4 {[%clk 0:02:13]} 14. Bf4 {[%clk 0:02:02]}  Qf6 {[%clk 0:01:42]} 15. Nh5 {[%clk 0:01:41]}  Qxc3 {[%clk 0:01:41]} 16. Bxc4 {[%clk 0:01:32]}  Nxc4 {[%clk 0:01:39]} 17. Rc1 {[%clk 0:01:31]}  Qd4+ {[%clk 0:01:11]} 18. Qxd4 {[%clk 0:01:29]}  cxd4 {[%clk 0:01:12]} 19. Rxc4 {[%clk 0:01:29]}  Ba6 {[%clk 0:01:12]} 20. Rc7 {[%clk 0:01:22]}  Bxf1 {[%clk 0:01:10]} 21. Kxf1 {[%clk 0:01:22]}  Rfd8 {[%clk 0:00:49]} 22. Bd6 {[%clk 0:01:11]}  exd5 {[%clk 0:00:31]} 23. exd5 {[%clk 0:01:05]}  Rdc8 {[%clk 0:00:31]} 24. Rxd7 {[%clk 0:00:56]}  Rd8 {[%clk 0:00:31]} 25. Rxd8+ {[%clk 0:00:35]}  Rxd8 {[%clk 0:00:32]} 26. Bb4 {[%clk 0:00:33]}  Rxd5 {[%clk 0:00:32]} 27. Nf4 {[%clk 0:00:32]}  Rb5 {[%clk 0:00:29]} 28. Nd3 {[%clk 0:00:28]}  a5 {[%clk 0:00:29]} 29. Bd6 {[%clk 0:00:26]}  f6 {[%clk 0:00:27]} 30. Ke2 {[%clk 0:00:22]}  Kf7 {[%clk 0:00:25]} 31. Kd2 {[%clk 0:00:22]}  Rb3 {[%clk 0:00:23]} 32. g4 {[%clk 0:00:20]}  Ke6 {[%clk 0:00:21]} 33. Bf8 {[%clk 0:00:19]}  g5 {[%clk 0:00:19]} 34. Kc2 {[%clk 0:00:17]}  Rc3+ {[%clk 0:00:18]} 35. Kd2 {[%clk 0:00:16]}  Kd5 {[%clk 0:00:18]} 36. Be7 {[%clk 0:00:14]}  Kc4 {[%clk 0:00:15]} 37. Nb2+ {[%clk 0:00:11]}  Kb3 {[%clk 0:00:15]} 38. Nd3 {[%clk 0:00:11]}  Rc2+ {[%clk 0:00:15]} 39. Kd1 {[%clk 0:00:11]}  Rc6 {[%clk 0:00:16]} 40. Bf8 {[%clk 0:00:10]}  Kc3 {[%clk 0:00:12]} 41. Nc1 {[%clk 0:00:07]}  d3 {[%clk 0:00:09]} 42. Be7 {[%clk 0:00:06]}  d2 {[%clk 0:00:06]} 43. Ne2+ {[%clk 0:00:04]}  Kd3 {[%clk 0:00:07]} 44. f4 {[%clk 0:00:04]}  Re6 {[%clk 0:00:05]} 45. fxg5 {[%clk 0:00:01]}  Rxe2 {[%clk 0:00:05]} 0-1


[Site "https://www.chess.com"]

[Event "Titled Tuesday Blitz February 07 Late 2023"]
[White "Carlsen, Magnus"]
[Black "Talibov, Shiroghlan"]
[WhiteFideId "1503014"]
[BlackFideId "13429078"]
[WhiteElo "2853"]
[BlackElo "2359"]
[Result "1-0"]
[Round "03"]
[TimeControl "180+2"]
[Date "2023.02.07"]
[WhiteClock "0:01:54"]
[BlackClock "0:00:37"]

1. Nf3 {[%clk 0:02:54]}  Nf6 {[%clk 0:02:56]} 2. g3 {[%clk 0:02:53]}  g6 {[%clk 0:02:52]} 3. b3 {[%clk 0:02:52]}  Bg7 {[%clk 0:02:52]} 4. Bb2 {[%clk 0:02:53]}  O-O {[%clk 0:02:52]} 5. Bg2 {[%clk 0:02:53]}  c5 {[%clk 0:02:53]} 6. c4 {[%clk 0:02:53]}  Nc6 {[%clk 0:02:53]} 7. O-O {[%clk 0:02:50]}  b6 {[%clk 0:02:51]} 8. d4 {[%clk 0:02:48]}  cxd4 {[%clk 0:02:52]} 9. Nxd4 {[%clk 0:02:49]}  Bb7 {[%clk 0:02:53]} 10. Nc3 {[%clk 0:02:49]}  Qc8 {[%clk 0:02:39]} 11. Nc2 {[%clk 0:02:45]}  d6 {[%clk 0:02:38]} 12. Rc1 {[%clk 0:02:44]}  Qf5 {[%clk 0:02:26]} 13. Nd5 {[%clk 0:02:29]}  Nxd5 {[%clk 0:02:19]} 14. cxd5 {[%clk 0:02:24]}  Ne5 {[%clk 0:01:25]} 15. Nd4 {[%clk 0:02:23]}  Qh5 {[%clk 0:01:26]} 16. Nc6 {[%clk 0:02:12]}  Bxc6 {[%clk 0:01:18]} 17. dxc6 {[%clk 0:02:11]}  Ng4 {[%clk 0:01:15]} 18. h3 {[%clk 0:02:10]}  Nxf2 {[%clk 0:01:03]} 19. Rxf2 {[%clk 0:02:07]}  Bxb2 {[%clk 0:01:02]} 20. Rc4 {[%clk 0:02:05]}  Rac8 {[%clk 0:00:49]} 21. Qd2 {[%clk 0:01:56]}  Be5 {[%clk 0:00:37]} 22. Rh4 {[%clk 0:01:54]} 1-0


[Site "https://www.chess.com"]

[Event "Titled Tuesday Blitz February 07 Late 2023"]
[White "Indjic, Aleksandar"]
[Black "Darini, Pouria"]
[WhiteFideId "911925"]
[BlackFideId "12502200"]
[WhiteElo "2618"]
[BlackElo "2401"]
[Result "0-1"]
[Round "03"]
[TimeControl "180+2"]
[Date "2023.02.07"]
[WhiteClock "0:00:11"]
[BlackClock "0:00:08"]

1. d4 {[%clk 0:03:00]}  Nf6 {[%clk 0:03:00]} 2. c4 {[%clk 0:03:00]}  e6 {[%clk 0:03:00]} 3. Nc3 {[%clk 0:03:01]}  Bb4 {[%clk 0:02:58]} 4. Qc2 {[%clk 0:03:01]}  d5 {[%clk 0:02:51]} 5. cxd5 {[%clk 0:03:00]}  exd5 {[%clk 0:02:51]} 6. Bg5 {[%clk 0:03:00]}  h6 {[%clk 0:02:29]} 7. Bh4 {[%clk 0:02:59]}  Be6 {[%clk 0:02:24]} 8. e3 {[%clk 0:02:52]}  Nbd7 {[%clk 0:02:24]} 9. Bd3 {[%clk 0:02:49]}  c6 {[%clk 0:02:16]} 10. Ne2 {[%clk 0:02:47]}  Bd6 {[%clk 0:02:12]} 11. f3 {[%clk 0:02:47]}  O-O {[%clk 0:01:37]} 12. O-O {[%clk 0:02:43]}  c5 {[%clk 0:01:32]} 13. dxc5 {[%clk 0:02:37]}  Nxc5 {[%clk 0:01:28]} 14. Nd4 {[%clk 0:02:36]}  Nxd3 {[%clk 0:01:27]} 15. Qxd3 {[%clk 0:02:35]}  Be7 {[%clk 0:01:11]} 16. Rad1 {[%clk 0:02:32]}  Rc8 {[%clk 0:01:08]} 17. Rd2 {[%clk 0:02:30]}  Qb6 {[%clk 0:01:09]} 18. Rfd1 {[%clk 0:02:27]}  Rfd8 {[%clk 0:01:09]} 19. Qf1 {[%clk 0:01:55]}  a6 {[%clk 0:01:09]} 20. Kh1 {[%clk 0:01:52]}  Re8 {[%clk 0:01:02]} 21. a3 {[%clk 0:01:38]}  Qc5 {[%clk 0:00:55]} 22. Nce2 {[%clk 0:01:35]}  Bd7 {[%clk 0:00:46]} 23. Nf4 {[%clk 0:01:29]}  Ba4 {[%clk 0:00:34]} 24. Re1 {[%clk 0:01:13]}  Ne4 {[%clk 0:00:18]} 25. fxe4 {[%clk 0:01:10]}  Bxh4 {[%clk 0:00:18]} 26. g3 {[%clk 0:01:10]}  Bg5 {[%clk 0:00:17]} 27. exd5 {[%clk 0:00:30]}  Bxf4 {[%clk 0:00:17]} 28. Qxf4 {[%clk 0:00:30]}  Qxd5+ {[%clk 0:00:17]} 29. e4 {[%clk 0:00:31]}  Qe5 {[%clk 0:00:14]} 30. Qxe5 {[%clk 0:00:29]}  Rxe5 {[%clk 0:00:14]} 31. Kg2 {[%clk 0:00:26]}  Rce8 {[%clk 0:00:14]} 32. Kf3 {[%clk 0:00:27]}  f5 {[%clk 0:00:11]} 33. Nxf5 {[%clk 0:00:24]}  Rxf5+ {[%clk 0:00:10]} 34. exf5 {[%clk 0:00:20]}  Rxe1 {[%clk 0:00:11]} 35. g4 {[%clk 0:00:19]}  Bc6+ {[%clk 0:00:11]} 36. Kf4 {[%clk 0:00:19]}  Re4+ {[%clk 0:00:12]} 37. Kg3 {[%clk 0:00:20]}  Re3+ {[%clk 0:00:12]} 38. Kf4 {[%clk 0:00:20]}  Re4+ {[%clk 0:00:13]} 39. Kg3 {[%clk 0:00:20]}  Kf7 {[%clk 0:00:14]} 40. h3 {[%clk 0:00:19]}  Re3+ {[%clk 0:00:14]} 41. Kh4 {[%clk 0:00:19]}  Rb3 {[%clk 0:00:13]} 42. Re2 {[%clk 0:00:19]}  Kf6 {[%clk 0:00:13]} 43. Re6+ {[%clk 0:00:18]}  Kf7 {[%clk 0:00:14]} 44. Re2 {[%clk 0:00:19]}  Bb5 {[%clk 0:00:13]} 45. Rc2 {[%clk 0:00:19]}  Ke7 {[%clk 0:00:11]} 46. Rd2 {[%clk 0:00:19]}  Bd7 {[%clk 0:00:11]} 47. Re2+ {[%clk 0:00:19]}  Kf6 {[%clk 0:00:10]} 48. Rd2 {[%clk 0:00:20]}  Be8 {[%clk 0:00:09]} 49. Re2 {[%clk 0:00:20]}  Bf7 {[%clk 0:00:10]} 50. Rd2 {[%clk 0:00:19]}  Rb6 {[%clk 0:00:08]} 51. b4 {[%clk 0:00:18]}  Rc6 {[%clk 0:00:07]} 52. Rd7 {[%clk 0:00:17]}  b5 {[%clk 0:00:07]} 53. Ra7 {[%clk 0:00:17]}  g5+ {[%clk 0:00:07]} 54. Kg3 {[%clk 0:00:16]}  Rc3+ {[%clk 0:00:06]} 55. Kh2 {[%clk 0:00:16]}  Rxa3 {[%clk 0:00:07]} 56. Rb7 {[%clk 0:00:16]}  Ra2+ {[%clk 0:00:07]} 57. Kg1 {[%clk 0:00:17]}  Rg2+ {[%clk 0:00:06]} 58. Kf1 {[%clk 0:00:16]}  Rb2 {[%clk 0:00:07]} 59. Rb6+ {[%clk 0:00:16]}  Ke5 {[%clk 0:00:07]} 60. Rxa6 {[%clk 0:00:17]}  Rxb4 {[%clk 0:00:08]} 61. Rxh6 {[%clk 0:00:17]}  Rb2 {[%clk 0:00:08]} 62. Ke1 {[%clk 0:00:17]}  b4 {[%clk 0:00:08]} 63. Rh7 {[%clk 0:00:18]}  Bd5 {[%clk 0:00:07]} 64. Re7+ {[%clk 0:00:18]}  Kf6 {[%clk 0:00:06]} 65. Rd7 {[%clk 0:00:18]}  Bg2 {[%clk 0:00:05]} 66. Rd3 {[%clk 0:00:18]}  b3 {[%clk 0:00:04]} 67. Re3 {[%clk 0:00:18]}  Bd5 {[%clk 0:00:04]} 68. Kd1 {[%clk 0:00:18]}  Rh2 {[%clk 0:00:04]} 69. Kc1 {[%clk 0:00:18]}  Rc2+ {[%clk 0:00:04]} 70. Kb1 {[%clk 0:00:19]}  Rf2 {[%clk 0:00:04]} 71. Kc1 {[%clk 0:00:13]}  Rf3 {[%clk 0:00:04]} 72. Re2 {[%clk 0:00:10]}  Rxh3 {[%clk 0:00:04]} 73. Rd2 {[%clk 0:00:10]}  Bf7 {[%clk 0:00:04]} 74. Kb2 {[%clk 0:00:10]}  Rg3 {[%clk 0:00:04]} 75. Rd4 {[%clk 0:00:11]}  Rf3 {[%clk 0:00:04]} 76. Rb4 {[%clk 0:00:11]}  Rf2+ {[%clk 0:00:05]} 77. Kb1 {[%clk 0:00:11]}  Rf1+ {[%clk 0:00:05]} 78. Kb2 {[%clk 0:00:11]}  Rf2+ {[%clk 0:00:06]} 79. Kb1 {[%clk 0:00:12]}  Rf4 {[%clk 0:00:07]} 80. Rb6+ {[%clk 0:00:11]}  Kg7 {[%clk 0:00:08]} 0-1


[Site "https://www.chess.com"]

[Event "Titled Tuesday Blitz February 07 Late 2023"]
[White "Korchmar, Vasiliy"]
[Black "Tari, Aryan"]
[WhiteFideId "24131750"]
[BlackFideId "1510045"]
[WhiteElo "2438"]
[BlackElo "2642"]
[Result "0-1"]
[Round "03"]
[TimeControl "180+2"]
[Date "2023.02.07"]
[WhiteClock "0:00:01"]
[BlackClock "0:00:18"]

1. e4 {[%clk 0:03:00]}  c6 {[%clk 0:02:56]} 2. d4 {[%clk 0:03:00]}  d5 {[%clk 0:02:56]} 3. e5 {[%clk 0:03:00]}  Bf5 {[%clk 0:02:54]} 4. Nd2 {[%clk 0:03:01]}  e6 {[%clk 0:02:54]} 5. Nb3 {[%clk 0:03:01]}  Nd7 {[%clk 0:02:54]} 6. Nf3 {[%clk 0:03:00]}  Qc7 {[%clk 0:02:54]} 7. Be2 {[%clk 0:02:48]}  f6 {[%clk 0:02:54]} 8. exf6 {[%clk 0:02:35]}  Ngxf6 {[%clk 0:02:55]} 9. O-O {[%clk 0:02:35]}  Bd6 {[%clk 0:02:55]} 10. c4 {[%clk 0:02:30]}  O-O {[%clk 0:02:54]} 11. Bg5 {[%clk 0:02:21]}  Ne4 {[%clk 0:02:53]} 12. Bh4 {[%clk 0:02:20]}  Bg4 {[%clk 0:02:30]} 13. Bg3 {[%clk 0:02:14]}  dxc4 {[%clk 0:02:02]} 14. Bxc4 {[%clk 0:02:12]}  Ng5 {[%clk 0:01:53]} 15. Nxg5 {[%clk 0:02:06]}  Bxd1 {[%clk 0:01:50]} 16. Nxe6 {[%clk 0:02:06]}  Qc8 {[%clk 0:01:12]} 17. Nxf8+ {[%clk 0:01:58]}  Kh8 {[%clk 0:01:12]} 18. Bxd6 {[%clk 0:01:43]}  Bxb3 {[%clk 0:01:10]} 19. Ng6+ {[%clk 0:01:29]}  hxg6 {[%clk 0:01:09]} 20. Bxb3 {[%clk 0:01:30]}  Nf6 {[%clk 0:01:07]} 21. Rae1 {[%clk 0:01:23]}  Nd5 {[%clk 0:00:59]} 22. Re5 {[%clk 0:00:37]}  Qd7 {[%clk 0:00:58]} 23. Ba3 {[%clk 0:00:30]}  Nf6 {[%clk 0:00:58]} 24. Re3 {[%clk 0:00:18]}  Nd5 {[%clk 0:00:46]} 25. Rh3+ {[%clk 0:00:13]}  Kg8 {[%clk 0:00:46]} 26. Rg3 {[%clk 0:00:13]}  Qe6 {[%clk 0:00:38]} 27. Re3 {[%clk 0:00:09]}  Qg4 {[%clk 0:00:35]} 28. Rfe1 {[%clk 0:00:08]}  Qxd4 {[%clk 0:00:33]} 29. Re4 {[%clk 0:00:07]}  Qf6 {[%clk 0:00:31]} 30. h3 {[%clk 0:00:06]}  Rf8 {[%clk 0:00:30]} 31. f3 {[%clk 0:00:06]}  Rf7 {[%clk 0:00:25]} 32. Re6 {[%clk 0:00:04]}  Qd4+ {[%clk 0:00:25]} 33. Kh1 {[%clk 0:00:04]}  Qh4 {[%clk 0:00:23]} 34. Re8+ {[%clk 0:00:03]}  Kh7 {[%clk 0:00:23]} 35. R1e4 {[%clk 0:00:03]}  Qf2 {[%clk 0:00:20]} 36. Re2 {[%clk 0:00:03]}  Qg3 {[%clk 0:00:20]} 37. Bc5 {[%clk 0:00:02]}  Rf5 {[%clk 0:00:17]} 38. Bf2 {[%clk 0:00:02]}  Qg5 {[%clk 0:00:18]} 39. R8e4 {[%clk 0:00:02]}  Rf4 {[%clk 0:00:18]} 40. Re5 {[%clk 0:00:02]}  Rf5 {[%clk 0:00:18]} 41. R5e4 {[%clk 0:00:01]}  Qc1+ {[%clk 0:00:19]} 42. Kh2 {[%clk 0:00:02]}  Nf4 {[%clk 0:00:19]} 43. Bg3 {[%clk 0:00:01]}  Nxe2 {[%clk 0:00:18]} 0-1


[Site "https://www.chess.com"]

[Event "Titled Tuesday Blitz February 07 Late 2023"]
[White "Yuan, Qingyu"]
[Black "Sielecki, Christof"]
[WhiteFideId "8609772"]
[BlackFideId "4620437"]
[WhiteElo "2373"]
[BlackElo "2419"]
[Result "1-0"]
[Round "03"]
[TimeControl "180+2"]
[Date "2023.02.07"]
[WhiteClock "0:00:21"]
[BlackClock "0:00:02"]

1. e4 {[%clk 0:03:00]}  c5 {[%clk 0:02:59]} 2. Nf3 {[%clk 0:03:00]}  a6 {[%clk 0:02:59]} 3. c3 {[%clk 0:03:01]}  d5 {[%clk 0:02:59]} 4. exd5 {[%clk 0:03:01]}  Qxd5 {[%clk 0:03:00]} 5. d4 {[%clk 0:03:02]}  e6 {[%clk 0:03:00]} 6. Be3 {[%clk 0:02:57]}  Nd7 {[%clk 0:02:59]} 7. c4 {[%clk 0:02:51]}  Qc6 {[%clk 0:02:59]} 8. Nc3 {[%clk 0:02:46]}  Ngf6 {[%clk 0:02:59]} 9. Be2 {[%clk 0:02:41]}  b6 {[%clk 0:02:52]} 10. d5 {[%clk 0:02:36]}  exd5 {[%clk 0:02:51]} 11. cxd5 {[%clk 0:02:36]}  Qc7 {[%clk 0:02:50]} 12. a4 {[%clk 0:02:36]}  Bd6 {[%clk 0:02:50]} 13. O-O {[%clk 0:02:35]}  O-O {[%clk 0:02:49]} 14. h3 {[%clk 0:02:30]}  Re8 {[%clk 0:02:49]} 15. Qc2 {[%clk 0:02:27]}  Bb7 {[%clk 0:02:48]} 16. Rad1 {[%clk 0:02:23]}  Re7 {[%clk 0:02:39]} 17. Nh4 {[%clk 0:02:18]}  g6 {[%clk 0:02:39]} 18. Nf3 {[%clk 0:02:16]}  Rae8 {[%clk 0:02:34]} 19. Rfe1 {[%clk 0:02:17]}  Qb8 {[%clk 0:02:16]} 20. Bc4 {[%clk 0:02:14]}  Qa8 {[%clk 0:02:05]} 21. Qd3 {[%clk 0:02:13]}  Ne5 {[%clk 0:02:00]} 22. Nxe5 {[%clk 0:02:10]}  Rxe5 {[%clk 0:02:01]} 23. Bd2 {[%clk 0:01:54]}  Rxe1+ {[%clk 0:01:50]} 24. Rxe1 {[%clk 0:01:54]}  Rxe1+ {[%clk 0:01:48]} 25. Bxe1 {[%clk 0:01:55]}  Be5 {[%clk 0:01:23]} 26. Bd2 {[%clk 0:01:44]}  b5 {[%clk 0:01:14]} 27. axb5 {[%clk 0:01:41]}  axb5 {[%clk 0:01:14]} 28. Bxb5 {[%clk 0:01:16]}  Qa1+ {[%clk 0:01:08]} 29. Qb1 {[%clk 0:01:05]}  Qxb1+ {[%clk 0:01:02]} 30. Nxb1 {[%clk 0:01:06]}  Nxd5 {[%clk 0:00:46]} 31. Nc3 {[%clk 0:01:03]}  Nxc3 {[%clk 0:00:46]} 32. bxc3 {[%clk 0:00:56]}  Bd5 {[%clk 0:00:43]} 33. f3 {[%clk 0:00:50]}  Kf8 {[%clk 0:00:38]} 34. Kf2 {[%clk 0:00:41]}  Ke7 {[%clk 0:00:34]} 35. Ke2 {[%clk 0:00:37]}  Kd6 {[%clk 0:00:31]} 36. Kd3 {[%clk 0:00:37]}  f5 {[%clk 0:00:20]} 37. Bh6 {[%clk 0:00:37]}  Be6 {[%clk 0:00:20]} 38. Bf8+ {[%clk 0:00:36]}  Kc7 {[%clk 0:00:09]} 39. Bxc5 {[%clk 0:00:36]}  Bd6 {[%clk 0:00:09]} 40. Bd4 {[%clk 0:00:36]}  Bd5 {[%clk 0:00:06]} 41. Be8 {[%clk 0:00:35]}  Be6 {[%clk 0:00:05]} 42. Ba4 {[%clk 0:00:35]}  Kd8 {[%clk 0:00:04]} 43. c4 {[%clk 0:00:35]}  Kc7 {[%clk 0:00:04]} 44. Kc3 {[%clk 0:00:32]}  Bf4 {[%clk 0:00:04]} 45. Be8 {[%clk 0:00:31]}  Bd6 {[%clk 0:00:04]} 46. Ba4 {[%clk 0:00:28]}  Bd7 {[%clk 0:00:04]} 47. Bc2 {[%clk 0:00:25]}  Bc6 {[%clk 0:00:04]} 48. Bb3 {[%clk 0:00:25]}  Bd7 {[%clk 0:00:03]} 49. c5 {[%clk 0:00:25]}  Be7 {[%clk 0:00:03]} 50. Bd5 {[%clk 0:00:23]}  Bc6 {[%clk 0:00:02]} 51. Bg8 {[%clk 0:00:22]}  h6 {[%clk 0:00:02]} 52. Bh7 {[%clk 0:00:22]}  Be8 {[%clk 0:00:02]} 53. Bg8 {[%clk 0:00:21]}  Kc6 {[%clk 0:00:02]} 54. Kc4 {[%clk 0:00:21]}  Kc7 {[%clk 0:00:02]} 55. Bd5 {[%clk 0:00:22]}  g5 {[%clk 0:00:02]} 56. Be5+ {[%clk 0:00:21]} 1-0


[Site "https://www.chess.com"]

[Event "Titled Tuesday Blitz February 07 Late 2023"]
[White "Rustemov, Alexander"]
[Black "Cella, Glaucio Dalla Cortt"]
[WhiteFideId "4119002"]
[BlackFideId "2119455"]
[WhiteElo "2525"]
[BlackElo "1894"]
[Result "1-0"]
[Round "03"]
[TimeControl "180+2"]
[Date "2023.02.07"]
[WhiteClock "0:00:39"]
[BlackClock "0:00:09"]

1. d4 {[%clk 0:03:00]}  Nf6 {[%clk 0:02:59]} 2. c4 {[%clk 0:02:59]}  e5 {[%clk 0:02:59]} 3. dxe5 {[%clk 0:02:57]}  Ng4 {[%clk 0:02:59]} 4. Bf4 {[%clk 0:02:57]}  Nc6 {[%clk 0:02:59]} 5. Nf3 {[%clk 0:02:57]}  Bb4+ {[%clk 0:02:58]} 6. Nbd2 {[%clk 0:02:57]}  Qe7 {[%clk 0:02:57]} 7. e3 {[%clk 0:02:57]}  Ngxe5 {[%clk 0:02:56]} 8. Nxe5 {[%clk 0:02:58]}  Nxe5 {[%clk 0:02:56]} 9. Be2 {[%clk 0:02:58]}  d6 {[%clk 0:02:51]} 10. O-O {[%clk 0:02:58]}  a5 {[%clk 0:02:44]} 11. Nb3 {[%clk 0:02:55]}  a4 {[%clk 0:02:22]} 12. a3 {[%clk 0:02:54]}  axb3 {[%clk 0:02:18]} 13. axb4 {[%clk 0:02:53]}  Rxa1 {[%clk 0:02:17]} 14. Qxa1 {[%clk 0:02:54]}  Be6 {[%clk 0:02:05]} 15. Qa4+ {[%clk 0:02:45]}  b5 {[%clk 0:01:40]} 16. Qxb5+ {[%clk 0:02:43]}  Qd7 {[%clk 0:01:40]} 17. Qb8+ {[%clk 0:02:31]}  Qd8 {[%clk 0:01:32]} 18. Qa7 {[%clk 0:02:08]}  Bxc4 {[%clk 0:01:30]} 19. Bxc4 {[%clk 0:01:58]}  Nxc4 {[%clk 0:01:29]} 20. Qd4 {[%clk 0:01:58]}  d5 {[%clk 0:01:20]} 21. Qxg7 {[%clk 0:01:55]}  Kd7 {[%clk 0:01:07]} 22. Qxf7+ {[%clk 0:01:48]}  Kc8 {[%clk 0:01:07]} 23. Ra1 {[%clk 0:01:38]}  Kb7 {[%clk 0:00:50]} 24. Qe6 {[%clk 0:01:35]}  Nb6 {[%clk 0:00:33]} 25. Qe5 {[%clk 0:01:15]}  Re8 {[%clk 0:00:29]} 26. Qc3 {[%clk 0:01:15]}  d4 {[%clk 0:00:25]} 27. Qxb3 {[%clk 0:01:10]}  dxe3 {[%clk 0:00:24]} 28. Bxe3 {[%clk 0:01:09]}  Re5 {[%clk 0:00:16]} 29. Qa3 {[%clk 0:01:05]}  Rd5 {[%clk 0:00:15]} 30. Qa6+ {[%clk 0:01:01]}  Kc6 {[%clk 0:00:16]} 31. Rc1+ {[%clk 0:00:59]}  Kd7 {[%clk 0:00:16]} 32. Bxb6 {[%clk 0:00:55]}  cxb6 {[%clk 0:00:17]} 33. Qb7+ {[%clk 0:00:53]}  Ke6 {[%clk 0:00:16]} 34. Rc6+ {[%clk 0:00:47]}  Ke5 {[%clk 0:00:12]} 35. Qg7+ {[%clk 0:00:45]}  Ke4 {[%clk 0:00:11]} 36. Qg4+ {[%clk 0:00:42]}  Ke5 {[%clk 0:00:09]} 37. Re6# {[%clk 0:00:39]} 1-0


[Site "https://www.chess.com"]